[Event "FIDE World Cup G12-A 2024"]
[Site "Batumi"]
[Date "2024.06.24"]
[Round "2.9"]
[White "Potikha, Shelley"]
[Black "Ali, Maha"]
[Result "1-0"]
[ECO "B12"]
[WhiteElo "1464"]
[BlackElo "1601"]
[Annotator "NA RC"]
[PlyCount "53"]
[EventDate "2024.06.23"]
[EventType "swiss"]
[EventCountry "GEO"]
[SourceTitle "playchess.com"]
[Source "ChessBase"]
[SourceQuality "1"]
[TimeControl "5400+30"]

1. e4 {[%emt 0:04:43]} c6 {[%emt 0:00:10]} 2. d4 {[%emt 0:00:12]} d5 {[%emt 0:00:07]} 3. e5 {[%emt 0:00:06]} Bf5 {[%emt 0:00:06]} 4. h4 {[%emt 0:00:10]} h5 {[%emt 0:00:09]} 5. Bd3 {[%emt 0:00:08]} Bxd3 {[%emt 0:00:08]} 6. Qxd3 {[%emt 0:00:05]} e6 {[%emt 0:00:10]} 7. Bg5 {[%emt 0:00:10]} Qa5+ {[%emt 0:00:08]} 8. Nd2 {[%emt 0:00:10]} Qa6 {[%emt 0:00:24]} 9. c4 {[%emt 0:00:17]} Bb4 {[%emt 0:01:35]} 10. b3 {[%emt 0:03:03]} Ne7 {[%emt 0:03:03]} 11. Ne2 {[%emt 0:02:33]} Nd7 {[%emt 0:01:40]} 12. O-O {[%emt 0:03:28]} Nf5 {[%emt 0:04:43]} 13. Ng3 {[%emt 0:02:25]} Bxd2 {[%emt 0:07:48]} 14. Nxf5 {[%emt 0:08:01]} exf5 {[%emt 0:03:28]} 15. Bxd2 {[%emt 0:02:33]} dxc4 {[%emt 0:02:30]} 16. Qxf5 {[%emt 0:06:09]} g6 {[%emt 0:03:30]} 17. Qe4 {[%emt 0:04:07]} O-O-O {[%emt 0:02:22]} 18. bxc4 {[%emt 0:05:12]} Qxc4 {[%emt 0:02:48]} 19. Rfc1 {[%emt 0:01:25]} Qe6 {[%emt 0:04:18]} 20. d5 {[%emt 0:05:51]} Qxe5 {[%emt 0:08:04]} 21. Qf3 {[%emt 0:03:27]} Qf5 {[%emt 0:07:55]} 22. dxc6 {[%emt 0:05:35]} Ne5 {[%emt 0:07:21]} 23. cxb7+ {[%emt 0:02:19]} Kd7 {[%emt 0:05:39]} 24. Qa3 {[%emt 0:15:17]} Nd3 {[%emt 0:02:40]} 25. Qxa7 {[%emt 0:05:50]} Rb8 {[%emt 0:02:04]} 26. Qd4+ {[%emt 0:02:02]} Ke7 {[%emt 0:03:39]} 27. Re1+ {[%emt 0:18:42]} 1-0

[Event "FIDE World Cup G12-A 2024"]
[Site "Batumi"]
[Date "2024.06.24"]
[Round "2.10"]
[White "Kutateladze, Anastasia"]
[Black "Lipartia, Nino"]
[Result "1-0"]
[ECO "B80"]
[WhiteElo "1598"]
[BlackElo "1437"]
[Annotator "NA RC"]
[PlyCount "127"]
[EventDate "2024.06.23"]
[EventType "swiss"]
[EventCountry "GEO"]
[SourceTitle "playchess.com"]
[Source "ChessBase"]
[SourceQuality "1"]
[TimeControl "5400+30"]

1. e4 {[%emt 0:00:02]} c5 {[%emt 0:00:01]} 2. Nf3 {[%emt 0:00:08]} Nc6 {[%emt 0:00:01]} 3. d4 {[%emt 0:00:06]} cxd4 {[%emt 0:00:01]} 4. Nxd4 {[%emt 0:00:06]} Nf6 {[%emt 0:00:04]} 5. Nc3 {[%emt 0:00:07]} d6 {[%emt 0:00:06]} 6. f3 {[%emt 0:00:06]} e6 {[%emt 0:01:40]} 7. Be3 {[%emt 0:00:06]} Be7 {[%emt 0:00:05]} 8. Qd2 {[%emt 0:00:06]} O-O {[%emt 0:00:14]} 9. g4 {[%emt 0:07:54]} Nxd4 {[%emt 0:11:05]} 10. Bxd4 {[%emt 0:00:23]} e5 {[%emt 0:00:29]} 11. Be3 {[%emt 0:00:27]} Be6 {[%emt 0:00:50]} 12. O-O-O {[%emt 0:08:18]} a6 {[%emt 0:01:19]} 13. h4 {[%emt 0:07:33]} b5 {[%emt 0:05:47]} 14. h5 {[%emt 0:05:07]} Qa5 {[%emt 0:08:39]} 15. Kb1 {[%emt 0:08:14]} Qc7 {[%emt 0:11:32]} 16. g5 {[%emt 0:04:02]} Nd7 {[%emt 0:01:54]} 17. Bh3 {[%emt 0:25:51]} b4 {[%emt 0:13:27]} 18. Nd5 {[%emt 0:02:36]} Bxd5 {[%emt 0:00:15]} 19. Qxd5 {[%emt 0:00:51]} Rab8 {[%emt 0:20:47]} 20. Bxd7 {[%emt 0:04:16]} Qxd7 {[%emt 0:00:03]} 21. Qxe5 {[%emt 0:00:40]} Rb5 {[%emt 0:02:27]} 22. Qd4 {[%emt 0:05:03]} Bxg5 {[%emt 0:09:00]} 23. Bxg5 {[%emt 0:00:19]} Rxg5 {[%emt 0:00:02]} 24. h6 {[%emt 0:01:47]} Qe6 {[%emt 0:01:31]} 25. hxg7 {[%emt 0:01:01]} Rc8 {[%emt 0:01:21]} 26. Rxh7 {[%emt 0:09:49]} Kxh7 {[%emt 0:00:02]} 27. Rh1+ {[%emt 0:00:06]} Kg6 {[%emt 0:00:08]} 28. f4 {[%emt 0:00:11]} Qf6 {[%emt 0:08:07]} 29. Qxf6+ {[%emt 0:00:41]} Kxf6 {[%emt 0:00:11]} 30. fxg5+ {[%emt 0:00:31]} Kxg7 {[%emt 0:00:06]} 31. Rh6 {[%emt 0:00:48]} Re8 {[%emt 0:00:50]} 32. Rxd6 {[%emt 0:01:01]} Rxe4 {[%emt 0:00:03]} 33. a3 {[%emt 0:00:04]} bxa3 {[%emt 0:00:27]} 34. bxa3 {[%emt 0:00:04]} Re5 {[%emt 0:01:03]} 35. Rxa6 {[%emt 0:00:05]} Rxg5 {[%emt 0:00:02]} 36. a4 {[%emt 0:00:11]} Rg3 {[%emt 0:00:47]} 37. Kb2 {[%emt 0:00:13]} f6 {[%emt 0:00:38]} 38. Rd6 {[%emt 0:00:53]} Rg5 {[%emt 0:00:37]} 39. Kb3 {[%emt 0:00:48]} Ra5 {[%emt 0:00:45]} 40. Kb4 {[%emt 0:09:56]} Ra8 {[%emt 0:00:09]} 41. a5 {[%emt 0:00:00]} Kg6 {[%emt 0:00:22]} 42. c4 {[%emt 0:00:00]} Kf5 {[%emt 0:00:14]} 43. a6 {[%emt 0:00:00]} Ke5 {[%emt 0:00:17]} 44. Rd5+ {[%emt 0:00:00]} Ke6 {[%emt 0:00:38]} 45. Ka5 {[%emt 0:00:00]} f5 {[%emt 0:01:12]} 46. Kb6 {[%emt 0:00:00]} Rb8+ {[%emt 0:00:32]} 47. Kc7 {[%emt 0:00:00]} Rb4 {[%emt 0:00:23]} 48. Rd6+ {[%emt 0:00:00]} Ke5 {[%emt 0:00:32]} 49. c5 {[%emt 0:00:00]} Rc4 {[%emt 0:00:55]} 50. Kc6 {[%emt 0:00:00]} Ra4 {[%emt 0:00:31]} 51. Kb7 {[%emt 0:00:00]} Rc4 {[%emt 0:01:56]} 52. Rc6 {[%emt 0:01:44]} Kd5 {[%emt 0:01:47]} 53. Rc8 {[%emt 0:00:49]} Rxc5 {[%emt 0:00:33]} 54. Rxc5+ {[%emt 0:00:07]} Kxc5 {[%emt 0:00:02]} 55. a7 {[%emt 0:00:09]} Kd4 {[%emt 0:00:03]} 56. a8=Q {[%emt 0:00:06]} f4 {[%emt 0:00:05]} 57. Qd8+ {[%emt 0:00:04]} Ke3 {[%emt 0:00:05]} 58. Qe7+ {[%emt 0:00:04]} Kf2 {[%emt 0:00:09]} 59. Qh4+ {[%emt 0:00:25]} Kf3 {[%emt 0:00:01]} 60. Kc6 {[%emt 0:00:23]} Ke3 {[%emt 0:00:16]} 61. Qe1+ {[%emt 0:00:04]} Kf3 {[%emt 0:00:05]} 62. Qf1+ {[%emt 0:00:10]} Kg3 {[%emt 0:00:05]} 63. Kd5 {[%emt 0:00:03]} f3 {[%emt 0:00:02]} 64. Ke4 {[%emt 0:00:05]} 1-0

[Event "FIDE World Cup G12-A 2024"]
[Site "Batumi"]
[Date "2024.06.24"]
[Round "2.12"]
[White "Gulishyan, Eseniya"]
[Black "Giorgadze, Mariam"]
[Result "1-0"]
[ECO "D05"]
[WhiteElo "1434"]
[BlackElo "1533"]
[Annotator "NA RC"]
[PlyCount "91"]
[EventDate "2024.06.23"]
[EventType "swiss"]
[EventCountry "GEO"]
[SourceTitle "playchess.com"]
[Source "ChessBase"]
[SourceQuality "1"]
[TimeControl "5400+30"]

1. d4 {[%emt 0:00:14]} Nf6 {[%emt 0:00:14]} 2. Nf3 {[%emt 0:00:06]} d5 {[%emt 0:00:04]} 3. e3 {[%emt 0:00:06]} e6 {[%emt 0:00:22]} 4. Bd3 {[%emt 0:00:22]} Bd6 {[%emt 0:00:08]} 5. b3 {[%emt 0:00:11]} O-O {[%emt 0:00:11]} 6. O-O {[%emt 0:00:22]} Nbd7 {[%emt 0:00:03]} 7. Bb2 {[%emt 0:00:05]} Re8 {[%emt 0:00:57]} 8. Ne5 {[%emt 0:00:27]} c5 {[%emt 0:02:09]} 9. Nd2 {[%emt 0:01:30]} Qc7 {[%emt 0:03:31]} 10. f4 {[%emt 0:00:49]} Nf8 {[%emt 0:06:06]} 11. Rf3 {[%emt 0:05:59]} Ng6 {[%emt 0:03:47]} 12. Rh3 {[%emt 0:03:56]} Qe7 {[%emt 0:11:19]} 13. Qf3 {[%emt 0:10:02]} Bxe5 {[%emt 0:11:27]} 14. fxe5 {[%emt 0:00:33]} Nd7 {[%emt 0:00:05]} 15. Qh5 {[%emt 0:00:23]} Ndf8 {[%emt 0:00:48]} 16. Rf1 {[%emt 0:01:33]} Qc7 {[%emt 0:06:52]} 17. c3 {[%emt 0:17:01]} Qd8 {[%emt 0:11:45]} 18. Nf3 {[%emt 0:07:31]} h6 {[%emt 0:03:28]} 19. g4 {[%emt 0:03:34]} Nh7 {[%emt 0:11:24]} 20. Bxg6 {[%emt 0:02:24]} fxg6 {[%emt 0:00:06]} 21. Qxg6 {[%emt 0:00:08]} Kh8 {[%emt 0:00:24]} 22. g5 {[%emt 0:01:31]} Rg8 {[%emt 0:04:30]} 23. Kh1 {[%emt 0:02:37]} Qe7 {[%emt 0:07:03]} 24. gxh6 {[%emt 0:02:59]} gxh6 {[%emt 0:00:26]} 25. Qxh6 {[%emt 0:00:18]} Bd7 {[%emt 0:02:45]} 26. Qf6+ {[%emt 0:01:48]} Qxf6 {[%emt 0:00:46]} 27. exf6 {[%emt 0:00:06]} Raf8 {[%emt 0:04:38]} 28. Ne5 {[%emt 0:00:22]} Bc6 {[%emt 0:02:14]} 29. Rff3 {[%emt 0:00:27]} Rg5 {[%emt 0:00:47]} 30. Rh6 {[%emt 0:06:52]} Rxe5 {[%emt 0:04:27]} 31. dxe5 {[%emt 0:00:11]} d4 {[%emt 0:00:03]} 32. Kg2 {[%emt 0:00:06]} dxe3 {[%emt 0:00:38]} 33. Rhh3 {[%emt 0:02:22]} Bxf3+ {[%emt 0:01:22]} 34. Kxf3 {[%emt 0:00:14]} Rf7 {[%emt 0:00:43]} 35. Kxe3 {[%emt 0:00:21]} Kg8 {[%emt 0:00:04]} 36. Ba3 {[%emt 0:00:39]} b6 {[%emt 0:00:07]} 37. b4 {[%emt 0:00:21]} cxb4 {[%emt 0:01:18]} 38. Bxb4 {[%emt 0:00:21]} a5 {[%emt 0:01:09]} 39. Be7 {[%emt 0:00:37]} b5 {[%emt 0:00:51]} 40. Kd4 {[%emt 0:00:20]} a4 {[%emt 0:00:31]} 41. Kc5 {[%emt 0:00:37]} Nf8 {[%emt 0:00:33]} 42. Rg3+ {[%emt 0:01:48]} Kh7 {[%emt 0:00:20]} 43. Bxf8 {[%emt 0:00:26]} Rxf8 {[%emt 0:00:04]} 44. Kd6 {[%emt 0:00:07]} Re8 {[%emt 0:00:26]} 45. Kd7 {[%emt 0:00:05]} Rf8 {[%emt 0:00:14]} 46. Ke7 {[%emt 0:00:18]} 1-0

[Event "FIDE World Cup G12-A 2024"]
[Site "Batumi"]
[Date "2024.06.25"]
[Round "3.1"]
[White "Qiu, Laurie"]
[Black "Zavivaeva, Kristina"]
[Result "1/2-1/2"]
[ECO "B13"]
[WhiteElo "2068"]
[BlackElo "1666"]
[Annotator "NA RC"]
[PlyCount "171"]
[EventDate "2024.06.23"]
[EventType "swiss"]
[EventCountry "GEO"]
[SourceTitle "playchess.com"]
[Source "ChessBase"]
[SourceQuality "1"]
[TimeControl "5400+30"]

1. e4 {[%emt 0:00:01]} c6 {[%emt 0:00:05]} 2. d4 {[%emt 0:00:10]} d5 {[%emt 0:00:06]} 3. exd5 {[%emt 0:00:07]} cxd5 {[%emt 0:00:04]} 4. Nf3 {[%emt 0:00:12]} Nf6 {[%emt 0:00:10]} 5. c3 {[%emt 0:00:21]} Nc6 {[%emt 0:00:12]} 6. Bf4 {[%emt 0:00:08]} g6 {[%emt 0:00:38] B13: Caro-Kann: Exchange Variation and Panov-Botvinnik Attack.} 7. h3 {[%emt 0:00:18] 7.Nbd2 is setting a new trend.} Bf5 {[%emt 0:00:13]} 8. Bd3 {[%emt 0:00:13]} Bxd3 {[%emt 0:00:59]} 9. Qxd3 {[%emt 0:00:02]} Bg7 {[%emt 0:00:15]} 10. Nbd2 {[%emt 0:00:44]} O-O {[%emt 0:01:13]} 11. O-O {[%emt 0:00:20]} Qb6 {[%emt 0:00:51]} 12. Rab1 {[%emt 0:02:39]} Rac8 {[%emt 0:05:51]} 13. Rfe1 {[%emt 0:03:47]} e6 {[%emt 0:00:37]} 14. b4 $146 {[%emt 0:05:24]} ({Predecessor:} 14. Ne5 Nxe5 15. Bxe5 a5 16. a4 Qc6 17. Qb5 Nd7 18. Bxg7 Kxg7 19. Qxc6 Rxc6 20. Ra1 {0-1 Mickiewicz,P (2235)-Gazik,V (2542) Titled Tuesday intern op 16th Feb blitz 2021 (2)}) 14... Ne7 {[%emt 0:02:19]} 15. Rec1 {[%emt 0:05:18]} Nf5 {[%emt 0:00:50]} 16. a4 {[%emt 0:01:26]} Nd6 {[%emt 0:01:54]} 17. Nb3 {[%emt 0:06:08]} Nfe4 {[%emt 0:04:15]} 18. Nc5 {[%emt 0:01:22]} Qc6 {[%emt 0:05:32]} 19. Bxd6 {[%emt 0:10:10]} Nxd6 {[%emt 0:00:24]} 20. b5 {[%emt 0:02:44]} Qc7 {[%emt 0:00:20]} 21. Nd2 {[%emt 0:00:54]} Nf5 {[%emt 0:01:25]} 22. a5 {[%emt 0:04:47]} e5 {[%emt 0:05:26]} 23. b6 {[%emt 0:04:31]} axb6 {[%emt 0:00:21]} 24. axb6 {[%emt 0:00:33]} Qc6 {[%emt 0:01:24]} 25. Rb4 {[%emt 0:02:23]} e4 {[%emt 0:03:22]} 26. Qe2 {[%emt 0:06:12]} (26. Qb5 $142) 26... Bh6 {[%emt 0:01:21]} 27. Re1 {[%emt 0:04:08]} e3 {[%emt 0:01:15]} 28. Nf1 {[%emt 0:01:53]} exf2+ {[%emt 0:01:02]} 29. Qxf2 {[%emt 0:00:19]} Rfe8 {[%emt 0:00:38]} 30. Rb2 $17 {[%emt 0:03:08]} Rxe1 {[%emt 0:01:14]} 31. Qxe1 {[%emt 0:01:20]} Bf8 {[%emt 0:00:28]} 32. Nd3 {[%emt 0:09:45]} Qxc3 {[%emt 0:01:07]} 33. Qxc3 {[%emt 0:00:09]} Rxc3 {[%emt 0:00:04]} 34. Nf4 {[%emt 0:00:21]} Bg7 {[%emt 0:01:15]} 35. Ne2 {[%emt 0:08:00]} Rd3 {[%emt 0:02:19]} 36. Rc2 {[%emt 0:00:52]} Bxd4+ {[%emt 0:03:38]} 37. Nxd4 {[%emt 0:00:08]} Rxd4 {[%emt 0:00:28]} 38. Rc7 {[%emt 0:01:06]} Nd6 {[%emt 0:01:00]} 39. Rd7 {[%emt 0:00:31]} Nc4 {[%emt 0:00:19]} 40. Rxb7 {[%emt 0:00:18]} Rd1 {[%emt 0:00:10]} 41. Kf2 {[%emt 0:00:41]} Rb1 {[%emt 0:01:57]} 42. Rb8+ {[%emt 0:00:17]} Kg7 {[%emt 0:00:08]} 43. b7 {[%emt 0:00:17]} Nd6 {[%emt 0:00:54]} 44. Rd8 {[%emt 0:00:57]} Ne4+ {[%emt 0:00:44]} 45. Ke3 {[%emt 0:01:41]} Rb3+ {[%emt 0:01:04]} 46. Kf4 {[%emt 0:01:22]} Rxb7 {[%emt 0:02:01]} 47. Rxd5 {[%emt 0:00:10]} Nf6 {[%emt 0:00:39]} 48. Rd2 {[%emt 0:00:17]} Rb5 {[%emt 0:01:26]} 49. Ne3 {[%emt 0:00:31]} g5+ {[%emt 0:02:09]} 50. Kf3 {[%emt 0:00:17]} h5 {[%emt 0:00:50]} 51. Rd4 {[%emt 0:01:11]} Kg6 {[%emt 0:04:17]} 52. Rd6 {[%emt 0:01:22]} Kg7 {[%emt 0:02:51]} 53. g4 {[%emt 0:02:31]} hxg4+ {[%emt 0:01:31]} 54. hxg4 {[%emt 0:00:04]} Re5 {[%emt 0:02:10]} 55. Nf5+ {[%emt 0:00:20]} Kg6 {[%emt 0:01:09]} 56. Ra6 {[%emt 0:00:13]} Rxf5+ {[%emt 0:01:29]} 57. gxf5+ {[%emt 0:00:12]} Kxf5 {[%emt 0:00:05]} 58. Ra5+ {[%emt 0:00:12]} Kg6 {[%emt 0:00:50]} 59. Ra6 {[%emt 0:00:50]} Kg7 {[%emt 0:01:46]} 60. Ke3 {[%emt 0:10:06]} Ng4+ {[%emt 0:01:39]} 61. Ke4 {[%emt 0:00:07]} f6 {[%emt 0:00:39]} 62. Kf5 {[%emt 0:00:04]} Nh6+ {[%emt 0:00:36]} 63. Ke6 {[%emt 0:00:04]} g4 {[%emt 0:02:30]} 64. Kd5 {[%emt 0:01:52]} Kg6 {[%emt 0:01:36]} 65. Ke4 {[%emt 0:00:06]} Kg5 {[%emt 0:01:57]} 66. Ra5+ {[%emt 0:02:33]} f5+ {[%emt 0:01:27]} 67. Ke3 {[%emt 0:00:04]} Nf7 {[%emt 0:00:42]} 68. Rd5 {[%emt 0:00:43]} Nh8 {[%emt 0:00:40]} 69. Kf2 {[%emt 0:00:34]} Ng6 {[%emt 0:00:53]} 70. Ra5 {[%emt 0:01:31]} Nf4 {[%emt 0:01:05]} 71. Rb5 {[%emt 0:00:29]} Nh5 {[%emt 0:01:47]} 72. Ra5 {[%emt 0:00:31]} Nf6 {[%emt 0:00:25]} 73. Rb5 {[%emt 0:00:35]} Kf4 {[%emt 0:00:55]} 74. Kg2 {[%emt 0:00:15]} Ne4 {[%emt 0:01:15]} 75. Ra5 {[%emt 0:00:53]} Nd2 {[%emt 0:04:27]} 76. Ra4+ {[%emt 0:00:27]} Ke3 {[%emt 0:01:06]} 77. Ra3+ {[%emt 0:00:07]} Ke2 {[%emt 0:01:21]} 78. Kg3 {[%emt 0:00:28]} Ne4+ {[%emt 0:01:41]} 79. Kf4 {[%emt 0:00:05]} g3 {[%emt 0:00:50]} 80. Ra2+ {[%emt 0:00:53]} Kf1 {[%emt 0:00:36]} 81. Kf3 {[%emt 0:00:35]} Kg1 {[%emt 0:01:12]} 82. Rg2+ {[%emt 0:00:56]} Kh1 {[%emt 0:00:08]} 83. Ra2 {[%emt 0:00:25]} f4 {[%emt 0:02:03]} 84. Kxe4 {[%emt 0:01:05]} g2 {[%emt 0:00:15]} 85. Rxg2 {[%emt 0:00:05]} Kxg2 {[%emt 0:00:04]} 86. Kxf4 {[%emt 0:00:07]} 1/2-1/2

[Event "FIDE World Cup G12-A 2024"]
[Site "Batumi"]
[Date "2024.06.25"]
[Round "3.2"]
[White "Xue, Tianhao"]
[Black "Mamakova, Aknur"]
[Result "1-0"]
[ECO "B76"]
[WhiteElo "1754"]
[BlackElo "1648"]
[Annotator "NA RC"]
[PlyCount "99"]
[EventDate "2024.06.23"]
[EventType "swiss"]
[EventCountry "GEO"]
[SourceTitle "playchess.com"]
[Source "ChessBase"]
[SourceQuality "1"]
[TimeControl "5400+30"]

1. e4 {[%emt 0:00:02]} c5 {[%emt 0:00:10]} 2. Nf3 {[%emt 0:00:06]} d6 {[%emt 0:00:08]} 3. d4 {[%emt 0:00:04]} cxd4 {[%emt 0:00:06]} 4. Nxd4 {[%emt 0:00:08]} Nf6 {[%emt 0:00:14]} 5. Nc3 {[%emt 0:00:09]} g6 {[%emt 0:00:08]} 6. Be3 {[%emt 0:00:04]} Bg7 {[%emt 0:00:06]} 7. f3 {[%emt 0:00:05]} O-O {[%emt 0:00:26]} 8. Qd2 {[%emt 0:00:05]} Nc6 {[%emt 0:00:19]} 9. O-O-O {[%emt 0:00:08]} d5 {[%emt 0:00:34]} 10. exd5 {[%emt 0:00:07]} Nxd5 {[%emt 0:00:07]} 11. Nxc6 {[%emt 0:00:05]} bxc6 {[%emt 0:00:10]} 12. Bd4 {[%emt 0:00:04]} e5 {[%emt 0:00:51]} 13. Bc5 {[%emt 0:00:07]} Re8 {[%emt 0:00:09]} 14. Ne4 {[%emt 0:00:05]} Qc7 {[%emt 0:00:25]} 15. h4 {[%emt 0:00:19]} f5 {[%emt 0:00:59]} 16. Nd6 {[%emt 0:00:11]} Rd8 {[%emt 0:00:12]} 17. Nxc8 {[%emt 0:00:07]} Raxc8 {[%emt 0:00:07]} 18. h5 {[%emt 0:00:09]} Nb6 {[%emt 0:02:47]} 19. Bxb6 {[%emt 0:00:24]} Rxd2 {[%emt 0:02:30]} 20. Bc4+ {[%emt 0:00:16]} Kf8 {[%emt 0:01:14]} 21. Bxc7 {[%emt 0:00:06]} Rxd1+ {[%emt 0:00:12]} 22. Rxd1 {[%emt 0:00:02]} Rxc7 {[%emt 0:00:08]} 23. hxg6 {[%emt 0:00:05]} hxg6 {[%emt 0:00:04]} 24. Rd6 {[%emt 0:00:27]} Bh6+ {[%emt 0:01:36]} 25. Kb1 {[%emt 0:00:18]} Kg7 {[%emt 0:01:10]} 26. c3 {[%emt 0:00:07]} Bf4 {[%emt 0:10:51]} 27. Kc2 {[%emt 0:05:52]} Kh6 {[%emt 0:09:21]} 28. b4 {[%emt 0:08:48]} Kh5 {[%emt 0:04:16]} 29. a4 {[%emt 0:04:35]} e4 {[%emt 0:09:58]} 30. Re6 {[%emt 0:03:57]} exf3 {[%emt 0:04:12]} 31. gxf3 {[%emt 0:00:26]} Bh2 {[%emt 0:04:25]} 32. Bd3 {[%emt 0:10:03]} c5 {[%emt 0:06:55]} 33. b5 {[%emt 0:02:37]} Bg1 {[%emt 0:02:44]} 34. Kb3 {[%emt 0:04:42]} Rd7 {[%emt 0:02:05]} 35. Kc4 {[%emt 0:01:22]} Bf2 {[%emt 0:05:05]} 36. a5 {[%emt 0:02:23]} Rf7 {[%emt 0:05:40]} 37. a6 {[%emt 0:02:51]} Kg5 {[%emt 0:02:43]} 38. b6 {[%emt 0:02:12]} axb6 {[%emt 0:00:20]} 39. Rxb6 {[%emt 0:00:16]} Ra7 {[%emt 0:00:28]} 40. Be2 {[%emt 0:02:49]} Re7 {[%emt 0:03:04]} 41. Bd1 {[%emt 0:01:54]} Rd7 {[%emt 0:03:10]} 42. Ba4 {[%emt 0:00:54]} Ra7 {[%emt 0:00:22]} 43. Bc6 {[%emt 0:02:10]} Kf4 {[%emt 0:02:17]} 44. Bb7 {[%emt 0:01:54]} g5 {[%emt 0:01:10]} 45. Rf6 {[%emt 0:01:24]} Bg1 {[%emt 0:01:44]} 46. Rf8 {[%emt 0:00:53]} g4 {[%emt 0:03:46]} 47. fxg4 {[%emt 0:00:29]} Kxg4 {[%emt 0:00:15]} 48. Ra8 {[%emt 0:00:37]} Rxa8 {[%emt 0:00:07]} 49. Bxa8 {[%emt 0:00:01]} Bh2 {[%emt 0:00:44]} 50. a7 {[%emt 0:00:11]} 1-0

[Event "FIDE World Cup G12-A 2024"]
[Site "Batumi"]
[Date "2024.06.25"]
[Round "3.3"]
[White "Mirzaliyeva, Leyla"]
[Black "Lu, Xiahan (Luna)"]
[Result "0-1"]
[ECO "C00"]
[WhiteElo "1548"]
[BlackElo "1859"]
[Annotator "NA RC"]
[PlyCount "90"]
[EventDate "2024.06.23"]
[EventType "swiss"]
[EventCountry "GEO"]
[SourceTitle "playchess.com"]
[Source "ChessBase"]
[SourceQuality "1"]
[TimeControl "5400+30"]

1. e4 {[%emt 0:00:04]} e6 {[%emt 0:00:04]} 2. d3 {[%emt 0:00:05]} d5 {[%emt 0:00:06]} 3. Nd2 {[%emt 0:00:08]} Be7 {[%emt 0:00:22]} 4. Ngf3 {[%emt 0:00:30]} Nf6 {[%emt 0:00:24]} 5. e5 {[%emt 0:00:10]} Nfd7 {[%emt 0:00:07]} 6. c3 {[%emt 0:00:39]} c5 {[%emt 0:00:24]} 7. Be2 {[%emt 0:01:03]} Nc6 {[%emt 0:00:54]} 8. d4 {[%emt 0:00:49]} O-O {[%emt 0:01:15]} 9. O-O {[%emt 0:00:16]} f6 {[%emt 0:02:20]} 10. exf6 {[%emt 0:00:42]} Nxf6 {[%emt 0:02:29]} 11. Ne5 {[%emt 0:04:52]} cxd4 {[%emt 0:05:18]} 12. Nxc6 {[%emt 0:00:22]} bxc6 {[%emt 0:00:06]} 13. cxd4 {[%emt 0:00:06]} c5 {[%emt 0:01:15]} 14. Nf3 {[%emt 0:05:08]} Qc7 {[%emt 0:04:56]} 15. h3 {[%emt 0:03:56]} cxd4 {[%emt 0:00:59]} 16. Nxd4 {[%emt 0:00:40]} e5 {[%emt 0:03:08]} 17. Nb5 {[%emt 0:00:53]} Qc6 {[%emt 0:01:25]} 18. Be3 {[%emt 0:02:15]} d4 {[%emt 0:01:57]} 19. Rc1 {[%emt 0:01:03]} Qd7 {[%emt 0:04:40]} 20. Rc7 {[%emt 0:06:55]} Qd8 {[%emt 0:03:09]} 21. Bd2 {[%emt 0:16:13]} a6 {[%emt 0:03:06]} 22. Ra7 {[%emt 0:00:55]} Rb8 {[%emt 0:01:56]} 23. Nc7 {[%emt 0:08:36]} Bc5 {[%emt 0:02:49]} 24. Nxa6 {[%emt 0:00:42]} Bxa7 {[%emt 0:00:26]} 25. Nxb8 {[%emt 0:00:06]} Qb6 {[%emt 0:00:33]} 26. Bc4+ {[%emt 0:46:22]} Kh8 {[%emt 0:01:33]} 27. a3 {[%emt 0:00:00]} Bxb8 {[%emt 0:00:47]} 28. b4 {[%emt 0:00:00]} Bb7 {[%emt 0:01:03]} 29. b5 {[%emt 0:00:00]} e4 {[%emt 0:01:28]} 30. Qe1 {[%emt 0:00:00]} Qc7 {[%emt 0:01:05]} 31. g3 {[%emt 0:00:00]} Qxc4 {[%emt 0:00:11]} 32. Qb1 {[%emt 0:00:00]} e3 {[%emt 0:00:49]} 33. fxe3 {[%emt 0:00:00]} dxe3 {[%emt 0:00:25]} 34. Qb4 {[%emt 0:00:00]} Qxb4 {[%emt 0:02:59]} 35. Bxb4 {[%emt 0:00:00]} e2 {[%emt 0:00:26]} 36. Re1 {[%emt 0:00:00]} Ba7+ {[%emt 0:00:12]} 37. Kh2 {[%emt 0:00:00]} Re8 {[%emt 0:00:22]} 38. a4 {[%emt 0:00:00]} Bf2 {[%emt 0:00:11]} 39. Rc1 {[%emt 0:00:00]} e1=Q {[%emt 0:00:36]} 40. Bxe1 {[%emt 0:00:00]} Bxe1 {[%emt 0:00:06]} 41. Rc7 {[%emt 0:00:00]} Bf3 {[%emt 0:01:06]} 42. b6 {[%emt 0:00:00]} Re2+ {[%emt 0:00:15]} 43. Kg1 {[%emt 0:00:00]} Bxg3 {[%emt 0:00:18]} 44. Rc8+ {[%emt 0:00:00]} Ng8 {[%emt 0:00:09]} 45. Rc1 {[%emt 0:00:00]} Rh2 {[%emt 0:00:14]} 0-1